Cogmind - Beta 17 @@@ ROGUE MODE // 2026.08.21 @ 12:26:10 Player: Talus Result: Destroyed by S-10 Pest with Light Assault Rifle Performance ------------- Evolutions (0) 0 Regions Visited (2) 400 Robots Destroyed (13) 65 Value Destroyed (382) 382 Prototype IDs (3) 60 Alien Tech Used (0) 0 Bonus (0) 0 TOTAL SCORE: 907 Bonus ------- None Cogmind --------- Core Integrity 0/250 Matter 290/300 Energy 125/125 System Corruption 0% Temperature Cool (72) Movement Walking (120) Location -10/Mines Parts ------- > --- POWER (1) -------- Light Ion Engine > --- PROPULSION (2) --- Aluminum Leg Aluminum Leg > --- UTILITY (2) ------ Small Storage Unit Signal Interpreter > --- WEAPON (2) ------- Small Laser Small Laser > --- INVENTORY (8) ---- Ion Engine Aluminum Leg Aluminum Leg Heat Sink Medium Battery (150) ECM Suite Light Assault Rifle Peak State ------------ > --- POWER ------------ Light Nuclear Core > --- PROPULSION ------- Aluminum Leg Aluminum Leg > --- UTILITY ---------- Small Storage Unit Signal Interpreter > --- WEAPON ----------- Small Laser Small Laser > --- INVENTORY -------- Ion Engine Light Ion Engine Aluminum Leg Aluminum Leg Heat Sink Medium Battery ECM Suite Light Assault Rifle [Rating: 9] Favorites ----------- Power Ion Engine Engine Ion Engine Power Core Light Nuclear Core Propulsion Aluminum Leg Leg Aluminum Leg Wheel Compact Wheel Utility Small Storage Unit Storage Small Storage Unit Processor Signal Interpreter Weapon Small Laser Energy Gun Small Laser Ballistic Gun Assault Rifle Build | -11 -10 -10 ------- Run | Yrd Mat Min Slots Evolved . | . . . Power . | . . . Propulsion . | . . . Utility . | . . . Weapon . | . . . Parts Attached 16 | 7 8 1 Power 4 | 1 2 1 Engine 3 | 1 1 1 Core 1 | . 1 . Reactor . | . . . Propulsion 5 | 2 3 . Treads . | . . . Leg 3 | . 3 . Wheel 2 | 2 . . Hover . | . . . Flight . | . . . Utility 3 | 1 2 . Device . | . . . Storage 2 | 1 1 . Processor 1 | . 1 . Hackware . | . . . Protection . | . . . Artifact . | . . . Weapon 4 | 3 1 . Energy Gun 3 | 2 1 . Energy Cannon . | . . . Ballistic Gun 1 | 1 . . Ballistic Cannon . | . . . Launcher . | . . . Special Weapon . | . . . Impact Weapon . | . . . Slashing Weapon . | . . . Piercing Weapon . | . . . Special Melee Weapon . | . . . Unidentified Prototypes . | . . . Parts Lost 2 | . 1 1 Power 1 | . . 1 Propulsion . | . . . Utility . | . . . Weapon 1 | . 1 . Highest Loss Streak 1 | . 1 1 To Critical Strikes . | . . . Average Backups 7 | 2 7 7 Power 1 | . 1 1 Propulsion 2 | 1 2 2 Utility 1 | . 1 3 Weapon 1 | . 1 1 Tool/Special . | . . . Unused Backups 7 | . 2 5 Power . | . . . Propulsion 4 | . 2 2 Utility 2 | . . 2 Weapon 1 | . . 1 Tool/Special . | . . . Average Slot Usage (%) 98 | . 98 100 Engine 8 | . 8 9 Core 5 | . 5 4 Leg 16 | . 15 28 Wheel 11 | . 12 . Storage 16 | . 16 14 Processor 10 | . 10 14 Energy Gun 20 | . 20 28 Ballistic Gun 7 | . 7 . Peak Build Rating 9 | 6 9 9 Average Rating 7 | 4 7 7 On Entrance 5 | . 6 9 Avg Prop Armor Cover (%) . | . . . Naked Turns . | . . . Heaviest Build 15 | 13 15 10 Greatest Support 26 | 26 26 20 Greatest Overweight (x) 1 | . 1 . Average Overweight (x) . | . . . Largest Inventory Capacity 8 | 8 8 8 Average Capacity 7 | 7 8 8 Most Carried 8 | 6 8 8 Average Carried 7 | 3 7 7 Final Capacity 8 | 8 8 8 Final Carried 8 | 6 8 7 Class Distribution -------------------- 100% | Mutant Dominant Class ---------------- Mutant | -10/Materials Mutant | -10/Mines Resources | -11 -10 -10 ----------- Run | Yrd Mat Min Matter Collected 429 | 261 168 . Remotely . | . . . Salvage Created 422 | . 402 20 Parts 24 | . 23 1 Haulers Intercepted . | . . . Recyclers Shooed . | . . . Parts Field Recycled . | . . . Retrieved Matter . | . . . Parts Self-Destructed . | . . . Prevented . | . . . Parts Restored . | . . . Kills | -11 -10 -10 ------- Run | Yrd Mat Min Combat Hostiles Destroyed 13 | . 12 1 Guns 13 | . 12 1 Classes Destroyed 2 | . 2 . Swarmer 4 | . 3 1 Grunt 9 | . 9 . Best Kill Streak 4 | . 4 1 Combat Bots Only 4 | . 4 1 Max Kills in Single Turn 1 | . 1 1 Gunslinging . | . . . Exploded . | . . . Melee . | . . . Uniques/NPCs Destroyed . | . . . Combat | -11 -10 -10 -------- Run | Yrd Mat Min Hostile Shots Fired 89 | . 58 31 Missed 20 | . 15 5 Hits 69 | . 43 26 Projectile 69 | . 43 26 Critical Strikes 2 | . 2 . Damage Taken 711 | . 503 208 Core 251 | . 166 85 Absorbed by Shields . | . . . Core Remaining (%) 100 | 100 . . Volleys Fired 45 | . 39 6 Largest 2 | . 2 2 Hottest 80 | . 80 80 Shots Fired 87 | . 75 12 Gun 87 | . 75 12 Cannon . | . . . Launcher . | . . . Special . | . . . Kinetic 29 | . 29 . Thermal 58 | . 46 12 Explosive . | . . . Electromagnetic . | . . . Robot Hit Streak 13 | . 13 1 Robot Miss Streak 5 | . 3 5 Penetration Max . | . . . Secondary Targets 1 | . 1 . Max Gunslinging Chain 1 | . 1 . Shots Hit Robots 53 | . 50 3 Core Hits 22 | . 21 1 Critical Kills . | . . . Critical Parts Destroyed 1 | . 1 . Critical Strikes 1 | . 1 . Destroy 1 | . 1 . Melee Attacks . | . . . Impact . | . . . Slashing . | . . . Piercing . | . . . Sneak Attacks . | . . . Combat Hostiles . | . . . Follow-up Attacks . | . . . Damage Inflicted 633 | . 599 34 Guns 621 | . 587 34 Cannons . | . . . Explosions . | . . . Melee . | . . . Ramming 12 | . 12 . Kinetic 247 | . 247 . Thermal 374 | . 340 34 Explosive . | . . . Electromagnetic . | . . . Impact . | . . . Slashing . | . . . Piercing . | . . . Highest Corruption . | . . . Average Corruption . | . . . Corruption Purged . | . . . Corruption Blocked . | . . . Overload Shots . | . . . Overflow Damage . | . . . Projectiles . | . . . Explosions . | . . . Melee . | . . . Knockbacks . | . . . Impact . | . . . Kinetic . | . . . Secondary . | . . . Self-Inflicted Damage . | . . . Shots . | . . . Rammed . | . . . Targets Rammed 3 | . 3 . Kicked 3 | . 3 . Crushed . | . . . Highest Temperature 163 | . 163 72 Average Temperature 57 | . 62 32 Received Heat Transfer 294 | . 294 . Siege Activations . | . . . Martial Activations . | . . . Shielding Activations . | . . . Robots Disrupted . | . . . Combat Hostiles . | . . . Robots Corrupted . | . . . Combat Hostiles . | . . . Parts Fried . | . . . Impact Corruptions . | . . . Robots Melted . | . . . Combat Hostiles . | . . . Parts Melted 2 | . 2 . Heat Transferred 850 | . 775 75 Parts Sabotaged . | . . . Parts Stolen . | . . . Parts Stripped . | . . . Power Chain Reactions . | . . . Alert | -11 -10 -10 ------- Run | Yrd Mat Min Maximum Alert Level . | . . . Low Security (%) 100 | 100 100 100 Level 1 . | . . . Level 2 . | . . . Level 3 . | . . . Level 4 . | . . . Level 5 . | . . . High Security . | . . . Max Security . | . . . Peak Influence 165 | . 165 49 Initial 29 | . . 29 Average 77 | . 85 29 Influence Increases 395 | . 365 30 Destroy 0b10 Robot/C 260 | . 240 20 Destroy Leader 70 | . 60 10 Successful Hack 5 | . 5 . Disable Machine 15 | . 15 . Lose Combat Pursuer 45 | . 45 . Influence Decreases 356 | . 289 67 Entered New Map 47 | . . 47 Time Decay 289 | . 279 10 Lost Part 20 | . 10 10 Squads Dispatched 4 | . 4 . Investigation 1 | . 1 . Extermination . | . . . Reinforcement 3 | . 3 . Assault . | . . . Garrison . | . . . Intercept . | . . . Searches Triggered . | . . . Construction Impeded . | . . . Haulers Reinforced . | . . . Active Scanning Responses . | . . . Cargo Convoy Interrupts . | . . . Stealth | -11 -10 -10 --------- Run | Yrd Mat Min Distress Signals 3 | . 3 . Communications Jammed . | . . . Distress Signals . | . . . Times Spotted 28 | . 25 3 Peak Tracking Total 7 | . 7 3 Tactical Retreats 1 | . 1 . Traps | -11 -10 -10 ------- Run | Yrd Mat Min Traps Triggered 1 | . 1 . Indirectly . | . . . Trap Hack Attempts . | . . . Triggered . | . . . Disarmed . | . . . Reprogrammed . | . . . Reused . | . . . Traps Extracted . | . . . Installed . | . . . Triggered . | . . . Machines | -11 -10 -10 ---------- Run | Yrd Mat Min Machines Disabled 1 | . 1 . Max in Single Turn 1 | . 1 . Machines Repaired . | . . . Machines Dismantled . | . . . Machines Sabotaged . | . . . Overloaded Fab Kills . | . . . Hacking | -11 -10 -10 --------- Run | Yrd Mat Min Machines Accessed 2 | . 2 . Terminals 2 | . 2 . Fabricators . | . . . Repair Stations . | . . . Recycling Units . | . . . Scanalyzers . | . . . Garrison Access . | . . . Total Hacks 2 | . 2 . Successful 2 | . 2 . Failed . | . . . Catastrophic . | . . . Database Lockouts . | . . . Manual . | . . . Terminals 2 | . 2 . Fabricators . | . . . Repair Stations . | . . . Recycling Units . | . . . Scanalyzers . | . . . Garrison Access . | . . . Terminal Hacks 2 | . 2 . Prototype ID Bank 2 | . 2 . Fabricator Hacks . | . . . Repair Station Hacks . | . . . Recycling Unit Hacks . | . . . Scanalyzer . | . . . Garrison Access Hacks . | . . . Unauthorized Hacks . | . . . Terminals . | . . . Fabricators . | . . . Repair Stations . | . . . Recycling Units . | . . . Scanalyzers . | . . . Garrison Access . | . . . Data Cores Recovered . | . . . Used . | . . . Hacking Detections 1 | . 1 . Full Trace Events . | . . . Feedback Events . | . . . Feedback Blocked . | . . . Robot Schematics Acquired . | . . . Robots Built . | . . . Authchips . | . . . Time . | . . . Total Robot Build Rating . | . . . Part Schematics Acquired . | . . . Parts Built . | . . . Authchips . | . . . Time . | . . . Total Part Build Rating . | . . . Part Studies Acquired . | . . . Parts Repaired . | . . . Time . | . . . Parts Recycled . | . . . Recycled Matter . | . . . Retrieved Matter . | . . . Retrieved Components . | . . . Parts Scanalyzed . | . . . Part Schematics Acquired . | . . . Parts Damaged . | . . . Bothacking | -11 -10 -10 ------------ Run | Yrd Mat Min Used RIF Installer . | . . . Robots Hacked . | . . . Non-combat . | . . . Combat . | . . . Robot Hacks Applied . | . . . Relay Couplers Released . | . . . Fabnet Peak Effective % . | . . . Robots Rewired . | . . . Allies Hacked . | . . . Hacks Repelled . | . . . Allies | -11 -10 -10 -------- Run | Yrd Mat Min Total Allies . | . . . Largest Group . | . . . Highest-Rated Group . | . . . Highest-Rated Ally . | . . . Total Orders . | . . . Ally Attacks . | . . . Total Damage . | . . . Kills . | . . . Allies Corrupted . | . . . Allies Melted . | . . . Intel | -11 -10 -10 ------- Run | Yrd Mat Min Active Infowar (turns) . | . . . Robot Analysis Total . | . . . Derelict Logs Recovered . | . . . Drone Launches . | . . . Drone Recoveries . | . . . Exploration | -11 -10 -10 ------------- Run | Yrd Mat Min Turns Passed 725 | 52 648 25 Spaces Moved 470 | 38 427 5 Core 1 | 1 . . Treads . | . . . Legs 233 | . 228 5 Wheels 236 | 37 199 . Hover . | . . . Flight . | . . . Fastest Speed 50 | 50 90 120 Average Speed 105 | 89 106 120 Slowest Speed 190 | 100 190 120 Overloaded Moves . | . . . Propulsion Burnouts . | . . . Robots Hopped . | . . . Potential Cave-ins . | . . . Cave-ins Triggered . | . . . Exploration Rate (%) 29 | 4 81 4 Regions Visited 2 Branch Regions 1 Pre-discovered Areas . | . . . Known Exits Taken 1 | . 1 . Unknown Exits Taken 1 | 1 . . Scrap Searched . | . . . Spaces Dug . | . . . Terrain Destroyed . | . . . Melee . | . . . Projectile . | . . . AOE . | . . . Terrain Rammed . | . . . Walls Destroyed . | . . . Machines Disabled . | . . . Actions | -11 -10 -10 --------- Run | Yrd Mat Min Total 611 | 52 547 12 Wait 61 | 2 59 . Move 468 | 37 426 5 Hop . | . . . Pick Up 10 | 6 4 . Fast Attach 9 | 6 3 . Attach 2 | . 1 1 Detach . | . . . Swap 6 | 1 5 . Drop 7 | . 7 . Fire 45 | . 39 6 Melee . | . . . Ram . | . . . Kick 3 | . 3 . Crush . | . . . Escape Stasis . | . . . Rewire . | . . . Trap . | . . . Miscellaneous . | . . . Route ------- -11/Scrapyard -10/Materials (discovered 4 exits: *Mat x3 / *Min) -10/Mines History --------- Turn | Location | Event 20 | -11/Scrapyard | Discovered new exit (range 16) 53 | -11/Scrapyard | Entered Materials 151 | -10/Materials | Discovered new exit (range 10) 304 | -10/Materials | Build established: Mutant 395 | -10/Materials | Core integrity fell below 50% 455 | -10/Materials | Discovered new exit (range 3) 456 | -10/Materials | Identified exit to Materials 642 | -10/Materials | Discovered exit to Materials (range 4) 694 | -10/Materials | Discovered new exit (range 6) 699 | -10/Materials | Identified exit to Mines 701 | -10/Materials | Entered Mines 711 | -10/Mines | Core integrity fell below 20% 720 | -10/Mines | Met a Derelict bent on vengeance 726 | -10/Mines | Destroyed by S-10 Pest with Light Assault Rifle Last Messages --------------- 00574_ ALERT: Hostiles spotted, dispatching reinforcements to Terminal M008. 00632_ G-34 Mercenary destroyed. 00635_ Acquired 8 matter. 00639_ Dropped Aluminum Leg. 00642_ EXIT=FOUND: MATERIALS 00651_ K-01 Serf cleans the Material Compactor. 00658_ Connecting with Terminal... 00668_ K-01 Serf cleans the Material Compactor. 00671_ Triggered Alarm Trap. 00671_ An alarm sounds. 00671_ ALERT: Alarm triggered, dispatching investigation squad. 00694_ EXIT=FOUND 00699_ EXIT=IDENTIFIED: MINES 00700_ Kicked K-01 Serf. LOCATION=MINES GOAL=ESCAPE Something is scanning the area. 00705_ Lgt. Nuclear Core destroyed. 00717_ S-10 Pest destroyed. Map ----- +----------------------------------------------------+ | | | | | | | | | ????????????????????????????????????????????????? | | ????????????????????????????????????????????????? | | ????????????????????????????????????????????????? | | ????????????????????????????????????????????????? | | ????????????????????????????????????????????????? | | ????????????????????????????????????????????????? | | ????????????????????????????????????????????????? | | ????????????????????????????????????????????????? | | ??????????????###???????????????????????????????? | | ?????????????## #????##????????????????????????? | | ????????????## ???? #????????????????????????? | | ????????????# #??? #????????????????????????? | | ????????????# ##? #????????????????????????? | | ????????????? ## #????????????????????????? | | ?????????????? # #????????????????????????? | | ???????????????# ####?????????????????????? | | ????????????????# ??????????????????????? | | ????????????????# #????????????????????????? | | ????????????????# #?????????????????????????? | | ????????????????## ##????????????????????????? | | ?????????????????## s ### #????????????????????? | | ??????????????????## [%@s #????????????????????? | | ???????????????????#########????????????????????? | | ????????????????????????????????????????????????? | | ????????????????????????????????????????????????? | | ????????????????????????????????????????????????? | | ????????????????????????????????????????????????? | | ????????????????????????????????????????????????? | | ????????????????????????????????????????????????? | | ????????????????????????????????????????????????? | | ????????????????????????????????????????????????? | | ????????????????????????????????????????????????? | | ????????????????????????????????????????????????? | | ????????????????????????????????????????????????? | | ????????????????????????????????????????????????? | | ????????????????????????????????????????????????? | | ????????????????????????????????????????????????? | | ????????????????????????????????????????????????? | | ????????????????????????????????????????????????? | | ????????????????????????????????????????????????? | | ????????????????????????????????????????????????? | | ????????????????????????????????????????????????? | | ????????????????????????????????????????????????? | | ????????????????????????????????????????????????? | | ????????????????????????????????????????????????? | | ????????????????????????????????????????????????? | +----------------------------------------------------+ Best States ------------- Heat Dissipation 25 Energy Generation 14 Energy Capacity 400 Matter Stores 300 Matter Capacity 300 Sight Range 16 Terrain Scan Density 10 Evasion (%) 55 Item Schematics ----------------- None Robot Schematics ------------------ None Fabricated ------------ Nothing Repaired ---------- Nothing Studied --------- None Alien Tech Used ----------------- None Achievements -------------- None Challenges ------------ None Game ------ Seed ThrowingSixSystem Manual? 0 Play Time 00:08:34 Cumulative 17.0 hours Start 2026.08.21 @ 12:17:49 End 2026.08.21 @ 12:26:10 Sessions 1 Manual Loads 0 Difficulty Rogue Special Mode None Game No. 38 Rogue 38 Adventurer 0 Explorer 0 Win Type - Total 0 Types 0/0/0/0/0/0/0/0/0/0 Lore% 12 Gallery% 17 Achievement% 14 Wizard Run 0 Options --------- Layout 0 ASCII 0 Keyboard 0 Movement Mouse Keybinds 0 Fullscreen 2 Font 18/SmallcapsGlow Map View 76x50 Zoom Use 0% Tactical HUD 1 Map Filters NONE Filters NONE Steam 1 RUN: 41621f49-10e5-4e5f-8dcb-6fdb77cdbcfc